Workbook

Sheet Web form
A1: GEODE-JSP Rugged System option selector and part number configurator | C1: v5.3 | D1: 2024-08-01 | F1: Hide | G1: Hide | H1: Hide | I1: Hide
A2: Click yellow cell. Then click arrow that appears to the right to choose an option. | F2: for | G2: for | H2: for | I2: for
A3: Options with * are considered "default" options. | F3: Customer | G3: Customer | H3: Customer | I3: Customer
A4: Part number and part description text will automatically fill in based on your selections. | F4: Use | G4: Use | H4: Use | I4: Use
A5: All options must be selected to generate a valid configuration and part number.
A6: Then submit this configuration worksheet to the email address below for a quote or further discussion with our technical sales team.
A7: sales@diamondsystems.com
D8: Part number builder text | E8: Part description builder text | F8: Cost | G8: Margin | H8: Price
A9: Base model (no selection required) | D9: GEO-JSP | E9: Geode-JSP Rugged System, | F9: 1035 | G9: 0.6 | H9: =ROUND(F9/(1-G9),0) -> 2588
A11: Jasper carrier board | B11: Choose One: | D11: =VLOOKUP(B11,Options!A:C,2,FALSE) ->  | E11: =VLOOKUP(B11,Options!A:C,3,FALSE) ->  | F11: =VLOOKUP(B11,Options!A:F,4,FALSE) -> 0 | G11: =VLOOKUP(B11,Options!A:F,5,FALSE) -> 0 | H11: =VLOOKUP(B11,Options!A:F,6,FALSE) -> 0
A13: Processor and RAM | B13: Choose One: | D13: =VLOOKUP(B13,Options!G:I,2,FALSE) ->  | E13: =VLOOKUP(B13,Options!G:I,3,FALSE) ->  | F13: =VLOOKUP(B13,Options!G:L,4,FALSE) -> 0 | G13: =VLOOKUP(B13,Options!G:L,5,FALSE) -> 0 | H13: =VLOOKUP(B13,Options!G:L,6,FALSE) -> 0
A15: I/O connector layout | B15: Choose One: | D15: =VLOOKUP(B15,Options!M:O,2,FALSE) ->  | E15: =VLOOKUP(B15,Options!M:R,3,FALSE) ->  | F15: =VLOOKUP(B15,Options!M:R,4,FALSE) -> 0 | G15: =VLOOKUP(B15,Options!M:R,5,FALSE) -> 0 | H15: =VLOOKUP(B15,Options!M:R,6,FALSE) -> 0
A17: Power supply | B17: Choose One: | D17: =VLOOKUP(B17,Options!S:X,2,FALSE) ->  | E17: =VLOOKUP($B17,Options!$S:$X,3,FALSE) ->  | F17: =VLOOKUP($B17,Options!$S:$X,4,FALSE) -> 0 | G17: =VLOOKUP($B17,Options!$S:$X,5,FALSE) -> 0 | H17: =VLOOKUP($B17,Options!$S:$X,6,FALSE) -> 0
A19: Integrated mass storage | B19: Choose One: | D19: =VLOOKUP(B19,Options!Y:AD,2,FALSE) ->  | E19: =VLOOKUP(B19,Options!Y:AD,3,FALSE) ->  | F19: =VLOOKUP(B19,Options!Y:AD,4,FALSE) -> 0 | G19: =VLOOKUP(B19,Options!Y:AD,5,FALSE) -> 0 | H19: =VLOOKUP(B19,Options!Y:AD,6,FALSE) -> 0
A21: Operating system | B21: Choose One: | D21: =VLOOKUP(B21,Options!AE:AJ,2,FALSE) ->  | E21: =VLOOKUP(B21,Options!AE:AJ,3,FALSE) ->  | F21: =VLOOKUP(B21,Options!AE:AJ,4,FALSE) -> 0 | G21: =VLOOKUP(B21,Options!AE:AJ,5,FALSE) -> 0 | H21: =VLOOKUP(B21,Options!AE:AJ,6,FALSE) -> 0
A23: Expansion I/O | B23: Choose One: | D23: =VLOOKUP(B23,Options!AK:AM,2,FALSE) ->  | E23: =VLOOKUP(B23,Options!AK:AM,3,FALSE) ->  | I23: Enter data
I24: for custom
B25: <Enter additional I/O details here. Cell will expand as needed.> | I25: I/O requirement
I26: to get cost & price
A27: Your system part number: | B27: =_xlfn.CONCAT(D9:D23) -> GEO-JSP
A28: Your system description: | B28: =_xlfn.CONCAT(E9:E23) -> Geode-JSP Rugged System, | F28: =SUM(F9:F27) -> 1035 | H28: =SUM(H9:H27) -> 2588 | I28: Calculated price
F29: BOM cost | H29: 1500 | I29: Bonus
H30: =H29+H28 -> 4088 | I30: Qty 1 price
H31: =H30-F28 -> 3053 | I31: Margin $
H32: =H31/H30 -> 0.7468199609 | I32: Margin %

Sheet Options (hidden)
A1: Carrier | B1: Carrier | C1: Carrier | D1: Carrier | E1: Carrier | F1: Carrier | G1: COM | H1: COM | I1: COM | J1: COM | K1: COM | L1: COM | M1: Panel | N1: Panel | O1: Panel | P1: Panel | Q1: Panel | R1: Panel | S1: Power | T1: Power | U1: Power | V1: Power | W1: Power | X1: Power | Y1: SSD | Z1: SSD | AA1: SSD | AB1: SSD | AC1: SSD | AD1: SSD | AE1: OS | AF1: OS | AG1: OS | AH1: OS | AI1: OS | AJ1: OS | AK1: Expansion | AL1: Expansion | AM1: Expansion
A2: Choose one: | G2: Choose one: | M2: Choose one: | S2: Choose one: | Y2: Choose one: | AE2: Choose one: | AK2: Choose one:
A3: *With DIO (baseboard JSP-BB02D) | B3: 02D | D3: 400 | E3: 0.55 | F3: =ROUND(D3/(1-E3),0) -> 889 | G3: *i7-1185GRE 32G | H3: -1185-32 | I3: 1185GRE CPU, 32GB RAM, | J3: 1391 | K3: 0.4 | L3: =ROUND(J3/(1-K3),0) -> 2318 | M3: *Expandable | N3: -E | O3: Expandable I/O, | P3: 1527 | Q3: 0.5 | R3: =ROUND(P3/(1-Q3),0) -> 3054 | S3: *MIL with isolation | T3: J | U3: MIL Iso Power 24V Out, | V3: 964 | W3: 0.5 | X3: =ROUND(V3/(1-W3),0) -> 1928 | Y3: *1TB | Z3: 1 | AA3: 1TB SSD, | AB3: 135 | AC3: 0.45 | AD3: =ROUND(AB3/(1-AC3),0) -> 245 | AE3: *Linux 64-bit | AF3: -LNX | AG3: Linux | AH3: 75 | AI3: 0.45 | AJ3: =ROUND(AH3/(1-AI3),0) -> 136 | AK3: *My system has no additional I/O requirements | AL3: -01
A4: With DAQ (baseboard JSP-BB03A) | B4: 03A | C4: DAQ, | D4: 550 | E4: 0.55 | F4: =ROUND(D4/(1-E4),0) -> 1222 | G4: i7-1365URE 32G | H4: -1365-32 | I4: 1365 CPU, 32GB RAM, | J4: 1388 | K4: 0.45 | L4: 2524 | M4: Fixed | N4: -F | O4: Fixed I/O, | P4: 1138 | Q4: 0.5 | R4: 2276 | S4: MIL without isolation | T4: N | U4: MIL Power 24V Out, | V4: 648 | W4: 0.5 | X4: =ROUND(V4/(1-W4),0) -> 1296 | Y4: 2TB | Z4: 2 | AA4: 2TB SSD, | AB4: 237 | AC4: 0.45 | AD4: =ROUND(AB4/(1-AC4),0) -> 431 | AE4: Windows 10 64-bit | AF4: -W10 | AG4: Windows 10 | AH4: =139+AH3 -> 214 | AI4: 0.45 | AJ4: =ROUND(AH4/(1-AI4),0) -> 389 | AK4: My system requires additional I/O (list below) | AL4: -XX (requires factory review) | AM4: (requires factory review)
G5: i7-1365URE 64G | H5: -1365-64 | I5: 1365 CPU, 64GB RAM, | J5: 1508 | K5: 0.45 | L5: 2742 | S5: None | T5: X | V5: 0 | W5: 0.5 | X5: =ROUND(V5/(1-W5),0) -> 0 | Y5: 512GB | Z5: 5 | AA5: 512GB SSD, | AB5: 76 | AC5: 0.45 | AD5: 138
G6: i7-11865MRE 32E | H6: -11865-32E | I6: 11865MRE CPU, 32GB ECC RAM, | J6: 1501 | K6: 0.45 | L6: 2729 | Y6: 128GB | Z6: 8 | AA6: 128GB SD, | AB6: 30 | AC6: 0.45 | AD6: 55
G7: i7-1185G7E-64 | H7: -1185G7E-64 | I7: 1185G7E CPU, 64GB RAM, | J7: 1043 | K7: 0.45 | L7: 1896
